Cogmind - Beta 15 @@@ ROGUE MODE // 2025.07.14 @ 01:48:46 Player: Nia Result: Destroyed by Autobeam Turret with Autobeam Performance ------------- Evolutions (0) 0 Regions Visited (2) 400 Robots Destroyed (19) 95 Value Destroyed (447) 447 Prototype IDs (13) 260 Alien Tech Used (0) 0 Bonus (0) 0 TOTAL SCORE: 1202 Bonus ------- None Cogmind --------- Core Integrity 0/250 Matter 271/300 Energy 99/100 System Corruption 0% Temperature Cool (18) Movement Core (750) Ox14 Location -10/Subcaves Parts ------- > --- POWER (1) -------- (None) > --- PROPULSION (2) --- (None) > --- UTILITY (2) ------ High-capacity Storage Unit Structural Scanner > --- WEAPON (2) ------- Assault Rifle > --- INVENTORY (20) --- Light Ion Engine Wheel Medium Matter Pod (100) High-capacity Matter Pod (200) Improved Targeting Computer Scrap Shield Medium Laser Light Assault Rifle Subdweller Machine Gun Peak State ------------ > --- POWER ------------ Subdweller Power Source > --- PROPULSION ------- Myomer Leg Myomer Leg > --- UTILITY ---------- High-capacity Storage Unit Structural Scanner > --- WEAPON ----------- Beamcaster Beam Cannon > --- INVENTORY -------- Light Ion Engine Wheel Medium Matter Pod High-capacity Matter Pod Improved Targeting Computer Scrap Shield Medium Laser Assault Rifle Light Assault Rifle Subdweller Machine Gun [Rating: 25] Favorites ----------- Power Subdweller Power Source Engine Subdweller Power Source Propulsion Wheel Leg Myomer Leg Wheel Wheel Utility High-capacity Storage Unit Device Structural Scanner Storage High-capacity Storage Unit Weapon Assault Rifle Energy Gun Beamcaster Energy Cannon Beam Cannon Ballistic Gun Assault Rifle Launcher Grenade Launcher Build | -11 -10 -10 ------- Run | Yrd Mat Sub Slots Evolved . | . . . Power . | . . . Propulsion . | . . . Utility . | . . . Weapon . | . . . Parts Attached 24 | 7 7 10 Power 4 | 1 2 1 Engine 4 | 1 2 1 Core . | . . . Reactor . | . . . Propulsion 7 | 2 1 4 Treads . | . . . Leg 2 | . . 2 Wheel 5 | 2 1 2 Hover . | . . . Flight . | . . . Utility 5 | 2 3 . Device 2 | 1 1 . Storage 3 | 1 2 . Processor . | . . . Hackware . | . . . Protection . | . . . Artifact . | . . . Weapon 8 | 2 1 5 Energy Gun 2 | . . 2 Energy Cannon 1 | . . 1 Ballistic Gun 3 | 2 . 1 Ballistic Cannon . | . . . Launcher 2 | . 1 1 Special Weapon . | . . . Impact Weapon . | . . . Slashing Weapon . | . . . Piercing Weapon . | . . . Special Melee Weapon . | . . . Unidentified Prototypes . | . . . Parts Lost 9 | . 1 8 Power 2 | . 1 1 Propulsion 3 | . . 3 Utility . | . . . Weapon 4 | . . 4 Highest Loss Streak 3 | . 1 3 To Critical Strikes . | . . . Average Backups 8 | 3 5 9 Power . | . . 1 Propulsion 1 | 1 1 1 Utility 3 | . 2 3 Weapon 2 | . 1 3 Tool/Special . | . . . Unused Backups 7 | 2 1 4 Power . | . . . Propulsion 2 | 2 . . Utility 2 | . . 2 Weapon 3 | . 1 2 Tool/Special . | . . . Average Slot Usage (%) 95 | . 99 93 Engine 13 | . 14 13 Leg 11 | . . 16 Wheel 14 | . 28 7 Device 13 | . 13 14 Storage 14 | . 14 14 Energy Gun 8 | . . 12 Energy Cannon 1 | . . 1 Ballistic Gun 11 | . 16 9 Launcher 5 | . 11 3 Peak Build Rating 25 | 7 7 25 Average Rating 14 | 4 6 18 On Entrance 4 | . 7 7 Naked Turns . | . . . Heaviest Build 59 | 10 52 59 Greatest Support 50 | 20 20 50 Greatest Overweight (x) 5 | . 2 5 Average Overweight (x) 1 | . 1 1 Largest Inventory Capacity 20 | 5 20 20 Average Capacity 18 | 5 17 20 Most Carried 16 | 5 7 16 Average Carried 8 | 3 5 10 Final Capacity 20 | 5 20 20 Final Carried 10 | 4 7 10 Class Distribution -------------------- 59% | Mutant 40% | Scavenger-Mutant Dominant Class ---------------- Mutant | -10/Materials Scavenger-Mutant | -10/Subcaves Resources | -11 -10 -10 ----------- Run | Yrd Mat Sub Matter Collected 1117 | 359 79 679 Remotely . | . . . Salvage Created 419 | 57 130 232 Parts 36 | 7 12 17 Haulers Intercepted . | . . . Recyclers Shooed . | . . . Parts Field Recycled . | . . . Retrieved Matter . | . . . Parts Self-Destructed 8 | . . 8 Prevented . | . . . Kills | -11 -10 -10 ------- Run | Yrd Mat Sub Combat Hostiles Destroyed 15 | 1 7 7 Guns 7 | 1 1 5 Cannons 2 | . . 2 AOE 6 | . 6 . Classes Destroyed 5 | 2 2 1 Worker 2 | 1 1 . Watcher 2 | . 2 . Swarmer 6 | . 3 3 Grunt 5 | 1 4 . Subdweller 4 | . . 4 Best Kill Streak 6 | 1 6 3 Combat Bots Only 4 | 1 4 3 Max Kills in Single Turn 2 | 1 2 1 Gunslinging . | . . . Exploded 1 | . 1 . Melee . | . . . Uniques/NPCs Destroyed . | . . . Combat | -11 -10 -10 -------- Run | Yrd Mat Sub Hostile Shots Fired 215 | 3 21 191 Missed 80 | . 7 73 Hits 135 | 3 14 118 Projectile 135 | 3 14 118 Damage Taken 1250 | 34 177 1039 Core 254 | 12 26 216 Absorbed by Shields . | . . . Core Remaining (%) 95 | 95 . . Volleys Fired 70 | 4 18 48 Largest 2 | 2 2 2 Hottest 135 | 40 50 135 Shots Fired 116 | 8 35 73 Gun 77 | 8 18 51 Cannon 14 | . . 14 Launcher 25 | . 17 8 Special . | . . . Kinetic 50 | 8 18 24 Thermal 49 | . . 49 Explosive 17 | . 17 . Electromagnetic . | . . . Robot Hit Streak 11 | 2 4 11 Robot Miss Streak 5 | 2 1 5 Penetration Max . | . . . Secondary Targets . | . . . Shots Hit Robots 48 | 4 14 30 Core Hits 33 | 3 18 12 Critical Kills . | . . . Critical Parts Destroyed . | . . . Critical Strikes 3 | . . 3 Burn 3 | . . 3 Melee Attacks . | . . . Impact . | . . . Slashing . | . . . Piercing . | . . . Sneak Attacks . | . . . Combat Hostiles . | . . . Follow-up Attacks . | . . . Damage Inflicted 1354 | 54 744 556 Guns 561 | 54 84 423 Cannons 70 | . . 70 Explosions 723 | . 660 63 Melee . | . . . Ramming . | . . . Kinetic 378 | 54 84 240 Thermal 316 | . . 316 Explosive 660 | . 660 . Electromagnetic . | . . . Impact . | . . . Slashing . | . . . Piercing . | . . . Highest Corruption . | . . . Average Corruption . | . . . Corruption Purged . | . . . Corruption Blocked . | . . . Overload Shots . | . . . Overflow Damage 18 | . 18 . Projectiles . | . . . Explosions 18 | . 18 . Melee . | . . . Knockbacks . | . . . Impact . | . . . Kinetic . | . . . Secondary . | . . . Self-Inflicted Damage 19 | . 19 . Shots 2 | . 2 . Rammed . | . . . Targets Rammed . | . . . Kicked . | . . . Crushed . | . . . Highest Temperature 135 | . 6 135 Average Temperature 32 | . 2 37 Received Heat Transfer 519 | 18 78 423 Siege Activations . | . . . Martial Activations . | . . . Shielding Activations . | . . . Robots Disrupted . | . . . Combat Hostiles . | . . . Robots Corrupted . | . . . Combat Hostiles . | . . . Parts Fried . | . . . Impact Corruptions . | . . . Robots Melted . | . . . Combat Hostiles . | . . . Parts Melted 1 | . . 1 Heat Transferred 851 | . . 851 Parts Sabotaged . | . . . Parts Stolen . | . . . Parts Stripped . | . . . Power Chain Reactions . | . . . Alert | -11 -10 -10 ------- Run | Yrd Mat Sub Maximum Alert Level . | . . . Low Security (%) 100 | 100 100 . Level 1 . | . . . Level 2 . | . . . Level 3 . | . . . Level 4 . | . . . Level 5 . | . . . High Security . | . . . Max Security . | . . . Peak Influence 164 | 20 164 . Initial 6 | . 6 . Average 65 | 3 80 . Influence Increases 480 | 25 290 165 Destroy 0b10 Robot/C 220 | 20 140 60 Destroy 0b10 Robot/NC 20 | 5 15 . Destroy Leader 34 | . 34 . Disable Machine 15 | . 15 . Destroy Structure 86 | . 86 . Lose Combat Pursuer 105 | . . 105 Influence Decreases 480 | 15 185 280 Entered New Map 60 | . 4 56 Time Decay 363 | 15 171 177 Lost Part 57 | . 10 47 Squads Dispatched 1 | . 1 . Investigation 1 | . 1 . Extermination . | . . . Reinforcement . | . . . Assault . | . . . Garrison . | . . . Intercept . | . . . Searches Triggered . | . . . Construction Impeded . | . . . Haulers Reinforced . | . . . Active Scanning Responses . | . . . Cargo Convoy Interrupts . | . . . Stealth | -11 -10 -10 --------- Run | Yrd Mat Sub Distress Signals 1 | . 1 . Communications Jammed . | . . . Distress Signals . | . . . Times Spotted 30 | 1 9 20 Peak Tracking Total 6 | 1 3 6 Tactical Retreats 7 | . . 7 Traps | -11 -10 -10 ------- Run | Yrd Mat Sub Traps Triggered . | . . . Indirectly . | . . . Trap Hack Attempts . | . . . Triggered . | . . . Disarmed . | . . . Reprogrammed . | . . . Reused . | . . . Traps Extracted . | . . . Installed . | . . . Triggered . | . . . Machines | -11 -10 -10 ---------- Run | Yrd Mat Sub Machines Disabled 3 | . 1 2 Max in Single Turn 1 | . 1 1 Machines Repaired . | . . . Machines Dismantled . | . . . Machines Sabotaged . | . . . Overloaded Fab Kills . | . . . Hacking | -11 -10 -10 --------- Run | Yrd Mat Sub Machines Accessed 6 | . 5 1 Terminals 4 | . 4 . Fabricators . | . . . Repair Stations . | . . . Recycling Units 1 | . 1 . Scanalyzers . | . . . Garrison Access . | . . . Total Hacks 22 | . 13 9 Successful 15 | . 6 9 Failed 7 | . 7 . Catastrophic . | . . . Database Lockouts . | . . . Manual . | . . . Terminals 12 | . 12 . Fabricators . | . . . Repair Stations . | . . . Recycling Units 1 | . 1 . Scanalyzers . | . . . Garrison Access . | . . . Terminal Hacks 14 | . 5 9 Record 11 | . 3 8 Prototype ID Bank 1 | . 1 . Alert Level 1 | . 1 . Proto ID Catalog 1 | . . 1 Fabricator Hacks . | . . . Repair Station Hacks . | . . . Recycling Unit Hacks 1 | . 1 . Process 1 | . 1 . Scanalyzer . | . . . Garrison Access Hacks . | . . . Unauthorized Hacks . | . . . Terminals . | . . . Fabricators . | . . . Repair Stations . | . . . Recycling Units . | . . . Scanalyzers . | . . . Garrison Access . | . . . Data Cores Recovered . | . . . Used . | . . . Hacking Detections 4 | . 4 . Full Trace Events 1 | . 1 . Feedback Events . | . . . Feedback Blocked . | . . . Robot Schematics Acquired . | . . . Robots Built . | . . . Authchips . | . . . Time . | . . . Total Robot Build Rating . | . . . Part Schematics Acquired . | . . . Parts Built . | . . . Authchips . | . . . Time . | . . . Total Part Build Rating . | . . . Parts Repaired . | . . . Time . | . . . Parts Recycled . | . . . Recycled Matter 23 | . 23 . Retrieved Matter . | . . . Retrieved Components . | . . . Parts Scanalyzed . | . . . Part Schematics Acquired . | . . . Parts Damaged . | . . . Bothacking | -11 -10 -10 ------------ Run | Yrd Mat Sub Used RIF Installer . | . . . Robots Hacked . | . . . Non-combat . | . . . Combat . | . . . Robot Hacks Applied . | . . . Relay Couplers Released . | . . . Fabnet Peak Effective % . | . . . Robots Rewired . | . . . Allies Hacked . | . . . Hacks Repelled . | . . . Allies | -11 -10 -10 -------- Run | Yrd Mat Sub Total Allies . | . . . Largest Group . | . . . Highest-Rated Group . | . . . Highest-Rated Ally . | . . . Total Orders . | . . . Ally Attacks . | . . . Total Damage . | . . . Kills . | . . . Allies Corrupted . | . . . Allies Melted . | . . . Intel | -11 -10 -10 ------- Run | Yrd Mat Sub Active Infowar (turns) 1309 | . 344 965 Structural 1309 | . 344 965 Robot Analysis Total . | . . . Derelict Logs Recovered 2 | . . 2 Drone Launches . | . . . Drone Recoveries . | . . . Exploration | -11 -10 -10 ------------- Run | Yrd Mat Sub Turns Passed 1487 | 97 425 965 Spaces Moved 923 | 86 343 494 Core 17 | 17 . . Treads . | . . . Legs 285 | . . 285 Wheels 621 | 69 343 209 Hover . | . . . Flight . | . . . Fastest Speed 50 | 50 80 110 Average Speed 133 | 74 103 165 Slowest Speed 190 | 80 110 190 Overloaded Moves . | . . . Propulsion Burnouts . | . . . Robots Hopped . | . . . Potential Cave-ins 1 | . 1 . Cave-ins Triggered . | . . . Exploration Rate (%) 25 | 8 46 23 Regions Visited 2 Branch Regions 1 Pre-discovered Areas 1 | . . 1 Known Exits Taken . | . . . Unknown Exits Taken 2 | 1 1 . Scrap Searched 1 | . . 1 Spaces Dug 22 | . . 22 Terrain Destroyed 175 | . 110 65 Melee . | . . . Projectile . | . . . AOE 175 | . 110 65 Terrain Rammed . | . . . Walls Destroyed . | . . . Machines Disabled . | . . . Actions | -11 -10 -10 --------- Run | Yrd Mat Sub Total 1069 | 112 382 575 Wait 1 | 1 . . Move 921 | 85 342 494 Hop . | . . . Pick Up 31 | 13 7 11 Fast Attach . | . . . Attach 27 | 7 7 13 Detach 9 | . 5 4 Swap . | . . . Drop 10 | 2 3 5 Fire 70 | 4 18 48 Melee . | . . . Ram . | . . . Kick . | . . . Crush . | . . . Escape Stasis . | . . . Rewire . | . . . Trap . | . . . Miscellaneous . | . . . Route ------- -11/Scrapyard -10/Materials (discovered 3 exits: [*Mat] / [*Min] / *Sub) -10/Subcaves (discovered 1 exit: [*Rec]) History --------- Turn | Location | Event 2 | -11/Scrapyard | Met Revision 17 63 | -11/Scrapyard | Discovered new exit (range 8) 98 | -11/Scrapyard | Entered Materials 205 | -10/Materials | Discovered new exit (range 13) 283 | -10/Materials | Discovered new exit (range 15) 308 | -10/Materials | Build established: Mutant 504 | -10/Materials | Discovered new exit (range 8) 523 | -10/Materials | Entered Subcaves 551 | -10/Subcaves | Learned location of Storage (-8) 589 | -10/Subcaves | Visited 4L-MR0's lab 589 | -10/Subcaves | Ambushed by swarm of Subdwellers 632 | -10/Subcaves | Lost 4 allies 663 | -10/Subcaves | Lost 3 parts (1n2w) 746 | -10/Subcaves | Ambushed by Subdweller buried in earth 965 | -10/Subcaves | Core integrity fell below 50% 1152 | -10/Subcaves | Build established: Scavenger-Mutant 1479 | -10/Subcaves | Core integrity fell below 20% 1482 | -10/Subcaves | Discovered new exit (range 16) 1488 | -10/Subcaves | Destroyed by Autobeam Turret with Autobeam Last Messages --------------- Flight Unit fries itself beyond repair. Acquired 17 matter. Acquired 14 matter. Flight Unit fries itself beyond repair. Acquired 11 matter. Beam Cannon destroyed. Lgt. Ion Engine fries itself beyond repair. Lgt. Assault Rifle fries itself beyond repair. Acquired derelict log, extracted data. Data stored: Storage entrances (x1). Subatomizers dissect the Carbon-fiber Leg. Subatomizers dissect the Broken Sub. Shrapnel Launcher, destroying it. Acquired 12 matter. Beamcaster destroyed. Myomer Leg destroyed. Sub. Power Source destroyed. EXIT=FOUND Myomer Leg destroyed. [Achievement: First Step to Greatness] Map ----- +----------------------------------------------------+ | ?????????????????????????????????????????????????? | | ?????????????????????????????????????????????????? | | ?????????????????????????????????????????????????? | | ?????????????????????????????????????????????????? | | ?????????????????????????????????????????????????? | | ?????????????????????????????????????????????????? | | ?????????????????????????????????????????????????? | | ?????????????????????????????????????????????????? | | ?????????????????????????????????????????????????? | | ?????????????????????????????????????????????????? | | ?????????????????????????????????????????????????? | | ?????????????????????????????????????????????????? | | ?????????????????????????????????????????????????? | | ?????????????????????????????????????????????????? | | ???????????????????????????##################????? | | ??????????????????????########################???? | | ??????????????????????####### ### ####??? | | ??????????????????????## #####? | | ??????????????????????## ##### | | ??????????????????????## ## ### | | ??????????????????????### ## ## | | ???????????" ?? ########## | | ??????????? ########## | | ???????????""t | | ??????????< | | ???????????""t @ ## | | ????????????? ########### ### ### | | ???????????????? ########### ### ###### | | ???????????????????????#### ## ########## | | ??????????????????????#### ########### | | ??????????????????????### ############ | | ??????????????????????## ###### ## | | ??????????????????????## ##### ## | | ????????????????????#### ##### ## | | ???????#################### ###### | | ???????############### ## ###### | | ???????##" """"""#" # # ##### ## | | ?????####"&*& X" "]# # ##### ## | | ?????######!!* ### #### ## | | ?????##"[ +* = # #### ### | | ?????##" ########## ! #### ## | | ?????## "##"#### #### ## | | ?????##"= ### = ### # | | ?????##" #!! = # | | ?????###"= =!=== "# ## ## | | ?????####"""##= # ## ##### #### | | ???#######"## ""# ### #### #### | | ??### ### ! "" ########### ##### | | ??## ######## ## #### | | ??#### #####" ######## ### # | +----------------------------------------------------+ Best States ------------- Heat Dissipation 35 Energy Generation 15 Energy Capacity 250 Matter Stores 400 Matter Capacity 500 Sight Range 16 Terrain Scan Density 10 Evasion (%) 50 Item Schematics ----------------- None Robot Schematics ------------------ None Fabricated ------------ Nothing Repaired ---------- Nothing Alien Tech Used ----------------- None Achievements -------------- Crack Shot First Step to Greatness Librarian One Hack Too Far Storm Trooper Challenges ------------ None Game ------ Seed CompanionWaveArray Manual? 0 Play Time 00:42:20 Cumulative 0.6 hours Start 2025.07.14 @ 01:07:03 End 2025.07.14 @ 01:48:46 Sessions 1 Manual Loads 0 Difficulty Rogue Special Mode None Game No. 1 Rogue 1 Adventurer 0 Explorer 0 Win Type - Total 0 Types 0/0/0/0/0/0/0/0/0/0 Lore% 0 Gallery% 1 Achievement% 1 Wizard Run 0 Options --------- Layout 1 ASCII 0 Keyboard 0 Movement Mouse Keybinds 0 Fullscreen 1 Font 36/Smallcaps Map View 50x40 Zoom Use 19% Tactical HUD 0 Map Filters NONE Filters NONE Steam 1 RUN: 090a8d0b-8713-4c3a-a23b-040f6a50cb01